{"text_format":"1","workbook":"xlsx","n_sheets":4,"sheets":["TAY Bi-Annual Report","Rep Workbook","Data Sheet","Drop Downs"],"not_rendered":{"charts":0,"images":0,"macros":0,"external_links":0,"defined_names":1,"comments":0,"pivot_tables":0},"unopened":[],"bounds":{"document_bytes":16777216,"sheet_cells":100000,"rows_first":2000,"rows_last":500,"rows_between":2000,"halvings":0,"cell_chars":16384,"cell_head_chars":4096},"cells_cut":0,"cells_raw":0,"read":"whole","date_system":"1900"}

{"sheet":"TAY Bi-Annual Report","index":0,"n_rows":206,"n_cols":11,"rows_kept":206,"cut":false,"hidden":false,"merged":[[124,0,124,8],[170,0,170,10],[130,0,130,10],[66,0,66,8],[66,9,66,10],[67,0,67,10],[68,0,68,10],[69,0,69,10],[57,0,57,10],[58,0,58,8],[59,0,59,8],[60,0,60,8],[61,0,61,8],[62,0,62,8],[63,0,63,8],[64,0,64,8],[65,0,65,8],[76,0,76,8],[83,0,83,8],[128,0,128,8],[129,0,129,8],[120,0,120,10],[121,0,121,8],[122,0,122,8],[123,0,123,8],[40,9,40,10],[207,0,207,10],[79,0,79,8],[108,0,108,8],[164,0,164,10],[166,0,166,10],[167,0,167,10],[116,0,116,8],[117,0,117,8],[118,0,118,8],[161,0,161,10],[162,0,162,10],[163,0,163,10],[85,0,85,8],[86,0,86,8],[88,0,88,8],[89,0,89,8],[90,0,90,8],[206,6,206,10],[206,0,206,5],[191,0,191,10],[180,0,180,10],[179,0,179,10],[110,0,110,8],[55,0,55,10],[56,0,56,10],[82,0,82,8],[73,0,73,10],[53,9,53,10],[77,0,77,8],[77,9,77,10],[78,0,78,10],[74,0,74,10],[54,0,54,10],[53,0,53,8],[13,8,13,10],[7,0,7,10],[10,0,10,10],[14,2,14,5],[12,2,12,5],[13,2,13,5],[14,6,14,7],[13,6,13,7],[12,6,12,7],[11,0,11,1],[11,8,11,10],[12,8,12,10],[11,2,11,5],[11,6,11,7],[14,8,14,10],[13,0,13,1],[12,0,12,1],[8,0,8,1],[8,2,8,5],[8,6,8,7],[9,0,9,10],[8,8,8,10],[14,11,14,24],[14,0,14,1],[15,0,15,1],[16,6,16,7],[15,6,15,7],[21,0,21,10],[20,0,20,10],[25,0,25,3],[24,0,24,3],[23,0,23,3],[26,0,26,3],[31,0,31,10],[44,0,44,10],[52,0,52,8],[49,0,49,8],[50,0,50,8],[51,0,51,8],[32,0,32,8],[46,0,46,8],[47,0,47,8],[48,0,48,8],[45,0,45,8],[0,0,0,10],[3,0,3,10],[4,0,4,1],[71,0,71,10],[72,0,72,10],[38,0,38,8],[41,0,41,10],[42,0,42,10],[43,0,43,10],[39,0,39,8],[29,0,29,10],[30,0,30,10],[37,0,37,8],[36,0,36,8],[35,0,35,8],[34,0,34,8],[33,0,33,8],[22,0,22,10],[15,8,15,10],[16,0,16,1],[16,8,16,10],[16,2,16,5],[15,2,15,5],[40,0,40,8],[139,0,139,8],[168,0,168,10],[169,0,169,10],[165,0,165,10],[140,0,140,8],[141,0,141,8],[142,0,142,8],[143,0,143,8],[144,0,144,8],[145,0,145,8],[146,0,146,8],[147,0,147,8],[148,0,148,8],[131,0,131,10],[132,0,132,10],[133,0,133,8],[134,0,134,8],[135,0,135,8],[135,9,135,10],[136,0,136,10],[137,0,137,8],[138,0,138,8],[5,0,5,10],[203,0,203,5],[203,6,203,10],[92,0,92,8],[115,0,115,8],[109,0,109,8],[103,0,103,10],[105,0,105,8],[106,0,106,8],[106,9,106,10],[107,0,107,10],[113,0,113,8],[101,0,101,10],[197,0,197,10],[202,0,202,5],[28,0,28,10],[70,0,70,10],[160,0,160,10],[149,0,149,8],[150,0,150,10],[151,0,151,8],[152,0,152,8],[153,0,153,8],[154,0,154,8],[204,6,204,10],[204,0,204,5],[205,0,205,5],[205,6,205,10],[202,6,202,10],[75,0,75,8],[104,0,104,8],[199,0,199,10],[200,0,200,10],[201,0,201,10],[111,0,111,8],[84,0,84,8],[102,0,102,10],[80,0,80,8],[81,0,81,8],[112,0,112,8],[87,0,87,8],[114,0,114,8],[100,0,100,8],[97,0,97,8],[96,0,96,8],[95,0,95,8],[94,0,94,8],[93,0,93,8],[198,0,198,10],[18,0,18,1],[18,2,18,5],[18,6,18,7],[18,8,18,10],[19,0,19,1],[19,2,19,5],[19,6,19,7],[19,8,19,10],[27,0,27,3],[183,0,183,10],[185,0,185,10],[186,0,186,10],[187,0,187,10],[188,0,188,10],[189,0,189,10],[190,0,190,10],[192,0,192,10],[193,0,193,10],[125,0,125,8],[126,0,126,8],[127,0,127,10],[91,0,91,10],[98,0,98,10],[6,0,6,5],[6,6,6,10],[194,0,194,10],[195,0,195,10],[196,0,196,10],[17,0,17,10],[171,0,171,10],[172,0,172,10],[173,0,173,10],[174,0,174,10],[175,0,175,10],[176,0,176,10],[178,0,178,10],[181,0,181,10],[182,0,182,10],[155,0,155,8],[156,0,156,8],[157,0,157,10],[158,0,158,8],[159,0,159,8],[99,0,99,8],[184,0,184,10],[177,0,177,10],[119,0,119,8]]}
["DEPARTMENT OF HOUSING AND COMMUNITY DEVELOPMENT\nDIVISON OF STATE FINANCIAL ASSISTANCE \nSTATE GRANTS MANAGEMENT BRANCH\n651 Bannon Street, 8th Floor\nSacramento, CA 95811"]
["TAYSGM@hcd.ca.gov"]
[]
["Housing Navigator Maintenance Program (HNMP), \nTransitional Housing Program (THP) and \nTransitional Housing Supplement Program (THP-SUP)\n\"TAY\" Program\nBi-Annual Report"]
["Last Revised 05/08/2025"]
["PLEASE NOTE: This form should be used to report on Housing Navigator Maintenance Program (HNMP), Transitional Housing Program (THP) Round 4 funds and onwards, and Transitional Housing Supplement Program (THP-SUP) Round 3 funds and onwards. Your contract number will contain the program short name of \"TAY\" if you are meant to use this form (example: 22-TAY-1234). If you are unsure whether this the correct form you should utilize, or if you have any questions about completing this form, please contact the State Grants Management TAY team at TAYSGM@hcd.ca.gov. "]
["Reporting Period:",null,null,null,null,null,"Select One"]
["Section 1: Contract Information"]
["Contract #:",null,null,null,null,null,"Total Contract Award Amount:"]
[]
["Section 2: Grantee Information"]
["County (Applicant) Name:",null,null,null,null,null,"Street Address:"]
["City Name:",null,null,null,null,null,"Zip:"]
["Authorized Representative Name:",null,null,null,null,null,"Authorized Representative Title:"]
["Authorized Representative Email:",null,null,null,null,null,"Authorized Representative Phone:"]
["Main Contact Name:",null,null,null,null,null,"Main Contact Title:"]
["Main Contact Email:",null,null,null,null,null,"Main Contact Phone:"]
["If the Main Contact is not the same person who completed this report, please enter that person's information below:"]
["Report Completor's Name:",null,null,null,null,null,"Report Completor's Title:"]
["Report Completor's Email:",null,null,null,null,null,"Report Completor's Phone:"]
[]
["Section 3: Allocations and Expenditures"]
["For each program in this section, please enter the total amount of the award for the contract # listed above, the total amount disbursed by HCD, and the total amount your entity has expended on program specific eligible activities.  Please make sure the data entered below are current, up-to-date figures; any balances should match what HCD currently has on-file. "]
["Program Name ",null,null,null,"Total Amount Awarded","Total Amount Disbursed","Total Amount Expended","Amount of Award NOT Disbursed","Percent of Award Not  Disbursed","Amount of Disbursed Funds Not Expended","Percent of Disbursed Funds Not Expended"]
["Housing Navigator Maintenance Program (HNMP) ",null,null,null,null,null,null,{"$f":"E25-F25","v":0},{"$f":"IFERROR(H25/E25,\"\")","v":""},{"$f":"F25-G25","v":0},{"$f":"IFERROR((F25-G25)/F25,\"\")","v":""}]
["Transitional Housing Program (THP) Round 4 and onwards",null,null,null,null,null,null,{"$f":"E26-F26","v":0},{"$f":"IFERROR(H26/E26,\"\")","v":""},{"$f":"F26-G26","v":0},{"$f":"IFERROR((F26-G26)/F26,\"\")","v":""}]
["Transitional Housing Supplement Program (THP-SUP) Round 3 and onwards",null,null,null,null,null,null,{"$f":"E27-F27","v":0},{"$f":"IFERROR(H27/E27,\"\")","v":""},{"$f":"F27-G27","v":0},{"$f":"IFERROR((F27-G27)/F27,\"\")","v":""}]
["Total Amounts: ",null,null,null,{"$f":"SUM(E25:E27)","v":0},{"$f":"SUM(F25:F27)","v":0},{"$f":"SUM(G25:G27)","v":0},{"$f":"SUM(H25:H27)","v":0},{"$f":"H28/E28","v":{"$error":"#DIV/0!"}},{"$f":"SUM(J25:J27)","v":0},{"$f":"J28/E28","v":{"$error":"#DIV/0!"}}]
[]
["Section 4: Use of Funds"]
[" For each program in this section, please enter the dollar amount expended for each eligible expense listed below before \"Other Expended Funds.\"  Please make sure that each \"Total Expended\" amount for each program in this section should match the total amount expended in Section 3 (above). "]
["Sec. 4.1: HNMP Use of Funds"]
[null,null,null,null,null,null,null,null,null,"Total Amount Previously Reported Expended","Amount Expended This Period"]
["Amount expended to assist young adults (aged 18-24 inclusive) in the foster care system to secure and maintain housing:"]
["Amount expended to assist young adults (aged 18-24 inclusive) not in the foster care system to secure and maintain housing:"]
["Amount expended to provide housing case management which includes essential services in emergency support to foster youth (aged 18-24 inclusive):"]
["Amount expended to prevent young adults (aged 18-24 inclusive)  from becoming homeless: "]
["Amount expended to improve coordination of services and linkages to key resources across the community including those from within the child welfare system and the local Continuum of Care:"]
["Other Expended Funds:"]
["Total:",null,null,null,null,null,null,null,null,{"$f":"SUM(J34:J39)","v":0},{"$f":"SUM(K34:K39)","v":0}]
["Total Expended:",null,null,null,null,null,null,null,null,{"$f":"SUM(J40,K40)","v":0}]
["Other Expended Funds"]
["If you entered an amount in \"Other Expended Funds\" for HNMP in the table above, please use the narrative box below to provide specific details on the eligible activity and use of funds. Please be as specific as possible in your description of how funds were expended."]
[]
["Sec. 4.2: THP Use of Funds"]
[null,null,null,null,null,null,null,null,null,"Total Amount Previously Reported Expended","Amount Expended This Period"]
["Amount expended to identify and assist housing services for young adults (aged 18-24 inclusive) in your community:"]
["Amount expended to assist young adults (aged 18-24 inclusive) in the foster care or probation system to secure and maintain housing:"]
["Amount expended to assist young adults (aged 18-24 inclusive) not in the foster care or probation system to secure and maintain housing:"]
["Amount expended to improve coordination of services and linkages to key resources across the community including those from within the child welfare system and the local Continuum of Care:"]
["Amount expended to provide engagement in outreach and targeting to serve those with most severe needs:"]
["Other Expended Funds:"]
["Total:",null,null,null,null,null,null,null,null,{"$f":"SUM(J47:J52)","v":0},{"$f":"SUM(K47:K52)","v":0}]
["Total Expended:",null,null,null,null,null,null,null,null,{"$f":"SUM(J53,K53)","v":0}]
["Other Expended Funds"]
["If you entered an amount in \"Other Expended Funds\" for THP Round 4 and onwards above, please use the narrative box below to provide specific details on the eligible activity and use of funds.  Please be as specific as possible in your description of how funds were expended."]
[]
["Sec. 4.3: THP-SUP Use of Funds"]
[null,null,null,null,null,null,null,null,null,"Total Amount Previously Reported Expended","Amount Expended This Period"]
["Amount expended to identify and assist housing services for young adults (aged 18-24 inclusive) in your community:"]
["Amount expended to assist young adults (aged 18-24 inclusive) in the foster care or probation system to secure and maintain housing:"]
["Amount expended to assist young adults (aged 18-24 inclusive) not in the foster care or probation system to secure and maintain housing:"]
["Amount expended to improve coordination of services and linkages to key resources across the community including those from within the child welfare system and the local Continuum of Care:"]
["Amount expended to provide engagement in outreach and targeting to serve those with most severe needs:"]
["Other Expended Funds:"]
["Total:",null,null,null,null,null,null,null,null,{"$f":"SUM(J60:J65)","v":0},{"$f":"SUM(K60:K65)","v":0}]
["Total Expended:",null,null,null,null,null,null,null,null,{"$f":"SUM(J66,K66)","v":0}]
["Other Expended Funds"]
["If you entered an amount in \"Other Expended Funds\" for  THP-SUP Round 3 and onwards above, use the narrative box below to provide specific details on the eligible activity and use of funds. Please be as specific as possible in your description of how funds were expended."]
[]
[]
["Section 5: Program Outcomes"]
["PLEASE NOTE: Please provide data on program participant outcomes for each program below. In cases where a single participant was served in more than one program (between HNMP, THP, and THP-SUP), please be sure to count the single participant in each section. This data will not be considered duplicative. "]
["Sec. 5.1: HNMP Outcomes"]
["Report on total participants served as previously reported and total amount of participants served this reporting period. These two categories combined should represent the overall total of individual served by program funds since the execution of your contract."]
[null,null,null,null,null,null,null,null,null,"Participants Served Prior to This Reporting Period","Participants Served This Reporting Period"]
["Total Number of Participants (aged 18-24 inclusive) Served with Program Funds:"]
["Total Participants Served:",null,null,null,null,null,null,null,null,{"$f":"SUM(J77,K77)","v":0}]
["Report on the subpopulation categories below. Since a single participant could fall into multiple subpopulations, the total number of participants listed below does not need to equal the total number of Participants served with program funds listed above. The following data may help HCD make data based decisions on future program funding and awards."]
["Total Number of Participants (aged 18-24 inclusive) Served who were homeless at time of program entry:"]
["Total Number of Participants (aged 18-24 inclusive) who exited program into homelessness:"]
["Total Number of Participants (aged 18-24 inclusive) who exited program into permanent housing:"]
["Total Number of Participants (aged 18-24 inclusive) employed:"]
["Total Number of Participants (aged 18-24 inclusive) which identify as LGBTQIA+:"]
["Total Number of Participants (aged 18-24 inclusive) enrolled in a school/education program:"]
["Total Number of Participants (aged 18-24 inclusive) which reported having a disability:"]
["Total Number of Participants (aged 18-24 inclusive) who reported being incarcerated prior to program entry:"]
["Total Number of Participants (aged 18-24 inclusive) who were in the state's probation system:"]
["Total Number of Participants (aged 18-24 inclusive) who were in the state's foster care system:"]
["Total Number of Participants (aged 18-24 inclusive) with minor children in the household:"]
["If minor children are in the household, provide the average number of children per household:"]
["Participant Race"]
["Total Number of Participants (aged 18-24 inclusive) which identify as American Indian or Alaska Native:"]
["Total Number of Participants (aged 18-24 inclusive) which identify as Asian:"]
["Total Number of Participants (aged 18-24 inclusive) which identify as Black or African American:"]
["Total Number of Participants (aged 18-24 inclusive) which identify as Native Hawaiian or Other Pacific Islander:"]
["Total Number of Participants (aged 18-24 inclusive) which identify as White:"]
["Total Number of Participants (aged 18-24 inclusive) which identify as Multiracial:"]
["Participant Ethnicity"]
["Total Number of Participants (aged 18-24 inclusive) which identify as Hispanic, Latino, or Spanish Origin:"]
["Total Number of Participants (aged 18-24 inclusive) which identify as Not of Hispanic, Latino, or Spanish Origin:"]
[]
["Sec. 5.2: THP Outcomes "]
["Report on total participants served as previously reported and total amount of participants served this reporting period. These two categories combined should represent the overall total of individual served by program funds since the execution of your contract."]
[null,null,null,null,null,null,null,null,null,"Participants Served Prior to This Reporting Period","Participants Served This Reporting Period"]
["Total Number of Participants (aged 18-24 inclusive) Served with Program Funds:"]
["Total Participants Served:",null,null,null,null,null,null,null,null,{"$f":"SUM(J106,K106)","v":0}]
["Report on the subpopulation categories below. Since a single participant could fall into multiple subpopulations, the total number of participants listed below does not need to equal the total number of Participants served with program funds listed above. The following data may help HCD make data based decisions on future program funding and awards."]
["Total Number of Participants (aged 18-24 inclusive) Served who were homeless at time of program entry:"]
["Total Number of Participants (aged 18-24 inclusive) who exited program into homelessness:"]
["Total Number of Participants (aged 18-24 inclusive) who exited program into permanent housing:"]
["Total Number of Participants (aged 18-24 inclusive) employed:"]
["Total Number of Participants (aged 18-24 inclusive) which identify as LGBTQIA+:"]
["Total Number of Participants (aged 18-24 inclusive) enrolled in a school/education program:"]
["Total Number of Participants (aged 18-24 inclusive) which reported having a disability:"]
["Total Number of Participants (aged 18-24 inclusive) who reported being incarcerated prior to program entry:"]
["Total Number of Participants (aged 18-24 inclusive) who were in the state's probation system:"]
["Total Number of Participants (aged 18-24 inclusive) who were in the state's foster care system:"]
["Total Number of Participants (aged 18-24 inclusive) with minor children in the household:"]
["If minor children are in the household, provide the average number of children per household:"]
["Participant Race"]
["Total Number of Participants (aged 18-24 inclusive) which identify as American Indian or Alaska Native:"]
["Total Number of Participants (aged 18-24 inclusive) which identify as Asian:"]
["Total Number of Participants (aged 18-24 inclusive) which identify as Black or African American:"]
["Total Number of Participants (aged 18-24 inclusive) which identify as Native Hawaiian or Other Pacific Islander:"]
["Total Number of Participants (aged 18-24 inclusive) which identify as White:"]
["Total Number of Participants (aged 18-24 inclusive) which identify as Multiracial:"]
["Participant Ethnicity"]
["Total Number of Participants (aged 18-24 inclusive) which identify as Hispanic, Latino, or Spanish Origin:"]
["Total Number of Participants (aged 18-24 inclusive) which identify as Not of Hispanic, Latino, or Spanish Origin :"]
[]
["Sec 5.3: THP-SUP Outcomes"]
["Report on total participants served as previously reported and total amount of participants served this reporting period. These two categories combined should represent the overall total of individual served by program funds since the execution of your contract."]
[null,null,null,null,null,null,null,null,null,"Participants Served Prior to This Reporting Period","Participants Served This Reporting Period"]
["Total Number of Participants (aged 18-24 inclusive) Served with Program Funds:"]
["Total Participants Served:",null,null,null,null,null,null,null,null,{"$f":"SUM(J135,K135)","v":0}]
["Report on the subpopulation categories below. Since a single participant could fall into multiple subpopulations, the total number of participants listed below does not need to equal the total number of Participants served with program funds listed above. The following data may help HCD make data based decisions on future program funding and awards."]
[null,null,null,null,null,null,null,null,null,"Participants Served Prior to This Reporting Period","Participants Served This Reporting Period"]
["Total Number of Participants (aged 18-24 inclusive) Served who were homeless at time of program entry:"]
["Total Number of Participants (aged 18-24 inclusive) who exited program into homelessness:"]
["Total Number of Participants (aged 18-24 inclusive) who exited program into permanent housing:"]
["Total Number of Participants (aged 18-24 inclusive) employed:"]
["Total Number of Participants (aged 18-24 inclusive) which identify as LGBTQIA+:"]
["Total Number of Participants (aged 18-24 inclusive) enrolled in a school/education program:"]
["Total Number of Participants (aged 18-24 inclusive) which reported having a disability:"]
["Total Number of Participants (aged 18-24 inclusive) who reported being incarcerated prior to program entry:"]
["Total Number of Participants (aged 18-24 inclusive) who were in the state's probation system:"]
["Total Number of Participants (aged 18-24 inclusive) who were in the state's foster care system:"]
["Total Number of Participants (aged 18-24 inclusive) with minor children in the household:"]
["If minor children are in the household, provide the average number of children per household:"]
["Participant Race"]
["Total Number of Participants (aged 18-24 inclusive) which identify as American Indian or Alaska Native:"]
["Total Number of Participants (aged 18-24 inclusive) which identify as Asian:"]
["Total Number of Participants (aged 18-24 inclusive) which identify as Black or African American:"]
["Total Number of Participants (aged 18-24 inclusive) which identify as Native Hawaiian or Other Pacific Islander:"]
["Total Number of Participants (aged 18-24 inclusive) which identify as White:"]
["Total Number of Participants (aged 18-24 inclusive) which identify as Multiracial:"]
["Participant Ethnicity"]
["Total Number of Participants (aged 18-24 inclusive) which identify as Hispanic, Latino, or Spanish Origin:"]
["Total Number of Participants (aged 18-24 inclusive) which identify as Not of Hispanic, Latino, or Spanish Origin :"]
[]
["Section 6: Narrative Questions"]
["Please provide detailed responses, with examples when applicable, to the questions in this section."]
["Sec. 6.1: What were the funds used for? "]
["HNMP"]
[]
["THP"]
[]
["THP-SUP"]
[]
["Sec. 6.2: Who were the housing navigator/s and/or subcontractor/s? \nWhat was their program approach and what were the outcomes? "]
["HNMP"]
[]
["THP"]
[]
["THP-SUP"]
[]
["Sec. 6.3: How were young adults participating in the foster care system prioritized?"]
["HNMP"]
[]
["THP"]
[]
["THP-SUP"]
[]
["Sec. 6.4: What were some notable program successes and outcomes?"]
["HNMP"]
[]
["THP"]
[]
["THP-SUP"]
[]
["Sec. 6.5: What were some notable program barriers and challenges?"]
["HNMP"]
[]
["THP"]
[]
["THP-SUP"]
[]
[]
["Section 7: Certification"]
["*By signing this request, I certify to the best of my knowledge and belief that the request is true, complete, and accurate, and the expenditures, disbursements and cash receipts will be  for the purposes and objectives set forth in the terms and conditions of the State award. I am aware that any false, fictitious, or fraudulent information, or the omission of any material fact, may subject me to criminal, civil or administrative penalties for fraud, false statements, false claims or otherwise. (U.S. Code Title 18, Section 1001 and Title 31, Sections 3729-3730 and 3801-3812)"]
["Note: You may choose \"Certification by Printed Name\" from the drop-down below and by doing so you are agreeing to all the information detailed in the above Certification without having to submit a copy of this document with a digital signature. If you select this option, please be sure to type out the same, correct name in both the \"Name of Authorized Person\" and \"Signature of Authorized Person\" fields. If you select \"Certification by Digital Signature,\" you must submit the following: 1) Copy of the Excel version of this document and 2) PDF copy with digital signature. "]
["Signature Method:",null,null,null,null,null,"Select One"]
["Name of Authorized Person:",null,null,null,null,null,"Title of Authorized Person:"]
[]
["Signature of Authorized Person:",null,null,null,null,null,"Date:"]

{"sheet":"Rep Workbook","index":1,"n_rows":89,"n_cols":8,"rows_kept":89,"cut":false,"hidden":true,"merged":[[31,0,31,7],[44,0,44,7],[45,0,45,6],[46,0,46,6],[42,0,42,7],[43,0,43,7],[38,0,38,7],[39,0,39,7],[40,0,40,6],[41,0,41,6],[32,0,32,7],[33,0,33,6],[34,0,34,6],[35,0,35,6],[36,0,36,7],[26,0,26,7],[29,0,29,6],[30,0,30,7],[23,0,23,6],[27,0,27,6],[28,0,28,6],[24,0,24,7],[84,0,84,7],[83,0,83,7],[47,0,47,7],[48,0,48,7],[54,0,54,7],[49,0,49,7],[58,0,58,6],[57,0,57,6],[61,0,61,7],[62,0,62,6],[63,0,63,6],[64,0,64,6],[80,0,80,6],[81,0,81,6],[82,0,82,6],[67,0,67,7],[16,0,16,6],[17,0,17,7],[18,0,18,7],[19,0,19,7],[25,0,25,7],[20,0,20,7],[21,0,21,6],[22,0,22,6],[14,0,14,6],[15,0,15,7],[0,0,0,7],[1,0,1,7],[2,0,2,7],[12,0,12,7],[8,0,8,7],[9,0,9,6],[10,0,10,6],[3,3,3,4],[4,3,4,4],[5,3,5,4],[13,0,13,6],[71,0,71,7],[72,0,72,7],[68,0,68,6],[69,0,69,6],[70,0,70,6],[79,0,79,7],[73,0,73,7],[74,0,74,6],[75,0,75,6],[76,0,76,6],[77,0,77,7],[78,0,78,7],[65,0,65,7],[66,0,66,7],[59,0,59,7],[60,0,60,7],[37,0,37,7],[55,0,55,7],[56,0,56,6],[53,0,53,7],[52,0,52,7],[51,0,51,6],[50,0,50,6],[89,0,89,7],[3,5,3,6],[4,5,4,6],[5,5,5,6],[11,0,11,6],[6,0,6,4],[7,0,7,4],[6,5,6,7],[7,5,7,7],[85,0,85,7],[86,0,86,6],[88,0,88,6],[87,0,87,6],[3,0,3,2],[4,0,4,2],[5,0,5,2]]}
["TAY Bi-Annual Report\nSGM Review Workbook"]
["Instructions: The assisgned SGM Representative will complete this Review Workbook for each submitted TAY BAR. Please note: \"Review\" should not be marked as \"complete\" in CAPES until this form has been approved by the reviewing manager. "]
["SGM Review Information"]
[" Representative Name:",null,null,null,null,"Manager Name:"]
["Rep. Review Start Date:",null,null,null,null,"Mgr. Review Start Date:"]
["Rep. Review End Date:",null,null,null,null,"Mgr. Approval Date: "]
["General Notes/Comments from Rep:",null,null,null,null,"General Notes/Comments from Mgr: "]
[]
["Section 1: Contract Information"]
["Contract # Inputted Correctly?",null,null,null,null,null,null,"Select One"]
["Correct Reporting Period Selected?",null,null,null,null,null,null,"Select One"]
["Total Contract Award Amount matches Total Contract Award Amount as listed in Standard Agreement? ",null,null,null,null,null,null,"Select One"]
["Section 2: Grantee Information"]
["Main Contact matches previous reporting period's Main Contact?",null,null,null,null,null,null,"Select One"]
["Does CAPES need to be updated with a new Main Contact? ",null,null,null,null,null,null,"Select One"]
["Section 3: Allocations and Expenditures"]
["Total Amount Awarded Per Program Confirmed with Standard Agreement?",null,null,null,null,null,null,"Select One"]
["In the event that you selected \"No\" in any of the fields above, please explain the issue and what has been done to correct it:"]
[]
["Section 4: Use of Funds "]
["4.1 HNMP"]
["Total Amount Previously Reported Expended matches what was reported in the last report? ",null,null,null,null,null,null,"Select One"]
["Total Expended Amount matches Total Expended Amount Reported in Section 3: Allocations and Expenditures?",null,null,null,null,null,null,"Select One"]
["Any \"Other Expended Funds\" accounted for and approved as an eligible expense?",null,null,null,null,null,null,"Select One"]
["In the event that you selected \"No\" in any of the fields above, please explain the issue and what has been done to correct it:"]
[]
["4.2 THP"]
["Total Amount Previously Reported Expended matches what was reported in the last report? ",null,null,null,null,null,null,"Select One"]
["Total Expended Amount matches Total Expended Amount Reported in Section 3: Allocations and Expenditures?",null,null,null,null,null,null,"Select One"]
["Any \"Other Expended Funds\" accounted for and approved as an eligible expense?",null,null,null,null,null,null,"Select One"]
["In the event that you selected \"No\" in any of the fields above, please explain the issue and what has been done to correct it:"]
[]
["4.3 THP-SUP"]
["Total Amount Previously Reported Expended matches what was reported in the last report? ",null,null,null,null,null,null,"Select One"]
["Total Expended Amount matches Total Expended Amount Reported in Section 3: Allocations and Expenditures?",null,null,null,null,null,null,"Select One"]
["Any \"Other Expended Funds\" accounted for and approved as an eligible expense?",null,null,null,null,null,null,"Select One"]
["In the event that you selected \"No\" in any of the fields above, please explain the issue and what has been done to correct it:"]
[]
["Section 5: Program Outcomes"]
["5.1 HNMP"]
["Participants served prior to this reporting period matches what was reported in the last report?",null,null,null,null,null,null,"Select One"]
["Any concerns regarding HNP program outcomes?",null,null,null,null,null,null,"Select One"]
["Use narrative box below to provide any additional information"]
[]
["5.2 THP"]
["Participants served prior to this reporting period matches what was reported in the last report?",null,null,null,null,null,null,"Select One"]
["Any concerns regarding THP program outcomes?",null,null,null,null,null,null,"Select One"]
["Use narrative box below to provide any additional information"]
[]
["5.3 THP-SUP"]
["Participants served prior to this reporting period matches what was reported in the last report?",null,null,null,null,null,null,"Select One"]
["Any concerns regarding THP-SUP program outcomes?",null,null,null,null,null,null,"Select One"]
["Use narrative box below to provide any additional information"]
[]
["Section 6: Narrative Questions"]
["6.1 Was the explanation provided for what funds were used for sufficient and in-line with each program's provided guidance and regulations?"]
["HNMP",null,null,null,null,null,null,"Select One"]
["THP ",null,null,null,null,null,null,"Select One"]
["THP-SUP",null,null,null,null,null,null,"Select One"]
["Use narrative box below to provide any additional information."]
[]
["6.2 Was the explanation provided what THP funds were used for sufficient and in-line with program regulations?"]
["HNMP",null,null,null,null,null,null,"Select One"]
["THP ",null,null,null,null,null,null,"Select One"]
["THP-SUP",null,null,null,null,null,null,"Select One"]
["Use narrative box below to provide any additional information."]
[]
["6.3 Was information on housing navigator/sub-contractor experience, program approach and outcomes sufficient?"]
["HNMP",null,null,null,null,null,null,"Select One"]
["THP ",null,null,null,null,null,null,"Select One"]
["THP-SUP",null,null,null,null,null,null,"Select One"]
["Use narrative box below to provide any additional information."]
[]
["6.4 Was the explanation on how foster care participants were prioritized sufficient?"]
["HNMP",null,null,null,null,null,null,"Select One"]
["THP ",null,null,null,null,null,null,"Select One"]
["THP-SUP",null,null,null,null,null,null,"Select One"]
["Use narrative box below to provide any additional information."]
[]
["6.5 If grantee reported on program barriers, are there any concerns with the contract's ability to continue serving the target population?"]
["HNMP",null,null,null,null,null,null,"Select One"]
["THP ",null,null,null,null,null,null,"Select One"]
["THP-SUP",null,null,null,null,null,null,"Select One"]
["Use narrative box below to provide any additional information."]
[]
["Section 7: Certification"]
["If a \"print\" signature method was chosen, does the Name and Signature match exactly? ",null,null,null,null,null,null,"Select One"]
["If a \"print\" signature method was chosen, was a date provided in the corresponding space/cell?",null,null,null,null,null,null,"Select One"]
["If a \"digital\" signature method was chosen, was a PDF containing a dated digital signature provided with the report submission?",null,null,null,null,null,null,"Select One"]

{"sheet":"Data Sheet","index":2,"n_rows":2,"n_cols":233,"rows_kept":2,"cut":false,"hidden":true,"merged":[]}
["Reporting Period","Contract #","Total Contract Award Amount","County","City","Street Address","ZIP","Authorized Rep Name","Authorized Rep Title","Authorized Rep Email","Authorized Rep Phone","Main Contact Person Name","Contact Person Title","Contact Person Email","Contact Person Phone","Report Completor's Name","Report Completor's Email","Report Completor's Title","Report Completor's Phone","HNMP Total Amount Awarded","HNMP Total Amount Disbursed","HNMP Total Amount Expended","HNMP Amount of Award NOT Disbursed","HNMP Amount of Disbursed Funds Not Expended","THP Total Amount Awarded","THP Total Amount Disbursed","THP Total Amount Expended","THP Amount of Award NOT Disbursed","THP Amount of Disbursed Funds Not Expended","THPSUP Awarded","THPSUP Disbursed","THPSUP Expended","THP-SUP Amount of Award NOT Disbursed","THP-SUP Amount of Disbursed Funds Not Expended","Total Amount Awarded","Total Amount Disbursed","Total Amount Expended","Amount of Award NOT Disbursed","Percent of Award Not  Disbursed","Amount of Disbursed Funds Not Expended","Percent of Disbursed Funds Not Expended","HNMP: Previous Amount expended to assist young adults (aged 18-24 inclusive) in the foster care system to secure and maintain housing:","HNMP: This Period Amount expended to assist young adults (aged 18-24 inclusive) in the foster care system to secure and maintain housing:","HNMP: Previous Amount expended to assist young adults (aged 18-24 inclusive) not in the foster care system to secure and maintain housing:","HNMP: This Period Amount expended to assist young adults (aged 18-24 inclusive) not in the foster care system to secure and maintain housing:","HNMP: Previous Amount expended to provide housing case management which includes essential services in emergency support to foster youth (aged 18-24 inclusive):","HNMP: This Period Amount expended to provide housing case management which includes essential services in emergency support to foster youth (aged 18-24 inclusive):","HNMP: Previous Amount expended to prevent young adults (aged 18-24 inclusive)  from becoming homeless: ","HNMP: This Period Amount expended to prevent young adults (aged 18-24 inclusive)  from becoming homeless: ","HNMP: Previous Amount expended to improve coordination of services and linkages to key resources across the community including those from within the child welfare system and the local Continuum of Care:","HNMP: This Period Amount expended to improve coordination of services and linkages to key resources across the community including those from within the child welfare system and the local Continuum of Care:","HNMP: Previous Other Expended Funds","HNMP: This Period Other Expended Funds","HNMP: Total Amount Previously Reported Expended","HNMP: Total Amount Expended This Period ","HNMP: Total Expended","HNMP: Other Expended Funds Narrative","THP: Previous Amount expended to identify and assist housing services for young adults (aged 18-24 inclusive) in your community:","THP: This Period Amount expended to identify and assist housing services for young adults (aged 18-24 inclusive) in your community:","THP: Previous Amount expended to assist young adults (aged 18-24 inclusive) in the foster care or probation system to secure and maintain housing:","THP: This Period Amount expended to assist young adults (aged 18-24 inclusive) in the foster care or probation system to secure and maintain housing:","THP: Previous Amount expended to assist young adults (aged 18-24 inclusive) not in the foster care or probation system to secure and maintain housing:","THP: This Period Amount expended to assist young adults (aged 18-24 inclusive) not in the foster care or probation system to secure and maintain housing:","THP: Previous Amount expended to improve coordination of services and linkages to key resources across the community including those from within the child welfare system and the local Continuum of Care:","THP: This Period Amount expended to improve coordination of services and linkages to key resources across the community including those from within the child welfare system and the local Continuum of Care:","THP: Previous Amount expended to provide engagement in outreach and targeting to serve those with most severe needs:","THP: This Period Amount expended to provide engagement in outreach and targeting to serve those with most severe needs:","THP: Previous Other Expended Funds:","THP: This Period Other Expended Funds:","THP: Total Amount Previously Reported Expended:","THP: Total Amount Expended This Period:","THP: Total Expended","THP: Other Expended Funds Narrative","THP-SUP: Previous Amount expended to identify and assist housing services for young adults (aged 18-24 inclusive) in your community:","THP-SUP: This Period Amount expended to identify and assist housing services for young adults (aged 18-24 inclusive) in your community:","THP-SUP: Previous Amount expended to assist young adults (aged 18-24 inclusive) in the foster care or probation system to secure and maintain housing:","THP-SUP: This Period Amount expended to assist young adults (aged 18-24 inclusive) in the foster care or probation system to secure and maintain housing:","THP-SUP: Previous Amount expended to assist young adults (aged 18-24 inclusive) not in the foster care or probation system to secure and maintain housing:","THP-SUP: This Period Amount expended to assist young adults (aged 18-24 inclusive) not in the foster care or probation system to secure and maintain housing:","THP-SUP: Previous Amount expended to improve coordination of services and linkages to key resources across the community including those from within the child welfare system and the local Continuum of Care:","THP-SUP: This Period Amount expended to improve coordination of services and linkages to key resources across the community including those from within the child welfare system and the local Continuum of Care:","THP-SUP: Previous Amount expended to provide engagement in outreach and targeting to serve those with most severe needs:","THP-SUP: This Period Amount expended to provide engagement in outreach and targeting to serve those with most severe needs:","THP-SUP: Previous Other Expended Funds:","THP-SUP: This Period Other Expended Funds:","THP-SUP: Total Amount Previously Reported Expended","THP-SUP: Amount Expended This Period","THP-SUP: Total Expended","THP-SUP: Other Expended Funds Narrative","HNMP: Previous Total Number of Participants (aged 18-24 inclusive) Served with Program Funds:","HNMP: This Period Total Number of Participants (aged 18-24 inclusive) Served with Program Funds:","HNMP: Total Participants Served","HNMP: Previous Total Number of Participants (aged 18-24 inclusive) Served who were homeless at time of program entry:","HNMP: This Period Total Number of Participants (aged 18-24 inclusive) Served who were homeless at time of program entry:","HNMP: Previous Total Number of Participants (aged 18-24 inclusive) who exited program into homelessness:","HNMP: This Period Total Number of Participants (aged 18-24 inclusive) who exited program into homelessness:","HNMP: Previous Total Number of Participants (aged 18-24 inclusive) who exited program into permanent housing:","HNMP: This Period Total Number of Participants (aged 18-24 inclusive) who exited program into permanent housing:","HNMP: Previous Total Number of Participants (aged 18-24 inclusive) employed:","HNMP: This Period Total Number of Participants (aged 18-24 inclusive) employed:","HNMP: Previous Total Number of Participants (aged 18-24 inclusive) which identify as LGBTQIA+:","HNMP: This Period Total Number of Participants (aged 18-24 inclusive) which identify as LGBTQIA+:","HNMP: Previous Total Number of Participants (aged 18-24 inclusive) enrolled in a school/education program:","HNMP: This Period Total Number of Participants (aged 18-24 inclusive) enrolled in a school/education program:","HNMP: Previous Total Number of Participants (aged 18-24 inclusive) which reported having a disability:","HNMP: This Period Total Number of Participants (aged 18-24 inclusive) which reported having a disability:","HNMP: Previous Total Number of Participants (aged 18-24 inclusive) who reported being incarcerated prior to program entry:","HNMP: This Period Total Number of Participants (aged 18-24 inclusive) who reported being incarcerated prior to program entry:","HNMP: Previous Total Number of Participants (aged 18-24 inclusive) who were in the state's probation system:","HNMP: This Period Total Number of Participants (aged 18-24 inclusive) who were in the state's probation system:","HNMP: Previous Total Number of Participants (aged 18-24 inclusive) who were in the state's foster care system:","HNMP: This Period Total Number of Participants (aged 18-24 inclusive) who were in the state's foster care system:","HNMP: Previous Total Number of Participants (aged 18-24 inclusive) with minor children in the household:","HNMP: This Period Total Number of Participants (aged 18-24 inclusive) with minor children in the household:","HNMP: Previous If minor children are in the household, provide the average number of children per household:","HNMP: This Period If minor children are in the household, provide the average number of children per household:","HNMP: Previous Total Number of Participants (aged 18-24 inclusive) which identify as American Indian or Alaska Native:","HNMP: This Period Total Number of Participants (aged 18-24 inclusive) which identify as American Indian or Alaska Native:","HNMP: Previous Total Number of Participants (aged 18-24 inclusive) which identify as Asian:","HNMP: This Period Total Number of Participants (aged 18-24 inclusive) which identify as Asian:","HNMP: Previous Total Number of Participants (aged 18-24 inclusive) which identify as Black or African American:","HNMP: This Period Total Number of Participants (aged 18-24 inclusive) which identify as Black or African American:","HNMP: Previous Total Number of Participants (aged 18-24 inclusive) which identify as Native Hawaiian or Other Pacific Islander:","HNMP: This Period Total Number of Participants (aged 18-24 inclusive) which identify as Native Hawaiian or Other Pacific Islander:","HNMP: Previous Total Number of Participants (aged 18-24 inclusive) which identify as Native Hawaiian or Other Pacific Islander:","HNMP: This Period Total Number of Participants (aged 18-24 inclusive) which identify as Native Hawaiian or Other Pacific Islander:","HNMP: Previous Total Number of Participants (aged 18-24 inclusive) which identify as Multiracial:","HNMP: This Period Total Number of Participants (aged 18-24 inclusive) which identify as Multiracial:","HNMP: Previous Total Number of Participants (aged 18-24 inclusive) which identify as Hispanic, Latino, or Spanish Origin:","HNMP: This Period Total Number of Participants (aged 18-24 inclusive) which identify as Hispanic, Latino, or Spanish Origin:","HNMP: Previous Total Number of Participants (aged 18-24 inclusive) which identify as Not of Hispanic, Latino, or Spanish Origin:","HNMP: This Period Total Number of Participants (aged 18-24 inclusive) which identify as Not of Hispanic, Latino, or Spanish Origin:","THP: Previous Participants Served","THP: This Period Participants Served","THP: Total Participants Served","THP: Previous Total Number of Participants (aged 18-24 inclusive) Served who were homeless at time of program entry:","THP: This Period Total Number of Participants (aged 18-24 inclusive) Served who were homeless at time of program entry:","THP: Previous Total Number of Participants (aged 18-24 inclusive) who exited program into homelessness:","THP: This Period Total Number of Participants (aged 18-24 inclusive) who exited program into homelessness:","THP: Previous Total Number of Participants (aged 18-24 inclusive) who exited program into permanent housing:","THP: This Period Total Number of Participants (aged 18-24 inclusive) who exited program into permanent housing:","THP: Previous Total Number of Participants (aged 18-24 inclusive) employed:","THP: This Period Total Number of Participants (aged 18-24 inclusive) employed:","THP: Previous Total Number of Participants (aged 18-24 inclusive) which identify as LGBTQIA+:","THP: This Period Total Number of Participants (aged 18-24 inclusive) which identify as LGBTQIA+:","THP: Previous Total Number of Participants (aged 18-24 inclusive) enrolled in a school/education program:","THP: This Period Total Number of Participants (aged 18-24 inclusive) enrolled in a school/education program:","THP: Previous Total Number of Participants (aged 18-24 inclusive) which reported having a disability:","THP: This Period Total Number of Participants (aged 18-24 inclusive) which reported having a disability:","THP: Previous Total Number of Participants (aged 18-24 inclusive) who reported being incarcerated prior to program entry:","THP: This Period Total Number of Participants (aged 18-24 inclusive) who reported being incarcerated prior to program entry:","THP: Previous Total Number of Participants (aged 18-24 inclusive) who were in the state's probation system:","THP: This Period Total Number of Participants (aged 18-24 inclusive) who were in the state's probation system:","THP: Previous Total Number of Participants (aged 18-24 inclusive) who were in the state's foster care system:","THP: This Period Total Number of Participants (aged 18-24 inclusive) who were in the state's foster care system:","THP: Previous Total Number of Participants (aged 18-24 inclusive) with minor children in the household:","THP: This Period Total Number of Participants (aged 18-24 inclusive) with minor children in the household:","THP: Previous If minor children are in the household, provide the average number of children per household:","THP: This Period If minor children are in the household, provide the average number of children per household:","THP: Previous Total Number of Participants (aged 18-24 inclusive) which identify as American Indian or Alaska Native:","THP: This Period Total Number of Participants (aged 18-24 inclusive) which identify as American Indian or Alaska Native:","THP: Previous Total Number of Participants (aged 18-24 inclusive) which identify as Asian:","THP: This Period Total Number of Participants (aged 18-24 inclusive) which identify as Asian:","THP: Previous Total Number of Participants (aged 18-24 inclusive) which identify as Black or African American:","THP: This Period Total Number of Participants (aged 18-24 inclusive) which identify as Black or African American:","THP: Previous Total Number of Participants (aged 18-24 inclusive) which identify as Native Hawaiian or Other Pacific Islander:","THP: This Period Total Number of Participants (aged 18-24 inclusive) which identify as Native Hawaiian or Other Pacific Islander:","THP: Previous Total Number of Participants (aged 18-24 inclusive) which identify as White:","THP: This Period Total Number of Participants (aged 18-24 inclusive) which identify as White:","THP: Previous Total Number of Participants (aged 18-24 inclusive) which identify as Multiracial:","THP: This Period Total Number of Participants (aged 18-24 inclusive) which identify as Multiracial:","THP: Previous Total Number of Participants (aged 18-24 inclusive) which identify as Hispanic, Latino, or Spanish Origin:","THP: This Period Total Number of Participants (aged 18-24 inclusive) which identify as Hispanic, Latino, or Spanish Origin:","THP: Previous Total Number of Participants (aged 18-24 inclusive) which identify as Not of Hispanic, Latino, or Spanish Origin :","THP: This Period Total Number of Participants (aged 18-24 inclusive) which identify as Not of Hispanic, Latino, or Spanish Origin :","THP-SUP: Previous Participants Served","THP-SUP: This Period Participants Served","THP-SUP: Total Participants Served","THP-SUP: Previous Total Number of Participants (aged 18-24 inclusive) Served who were homeless at time of program entry:","THP-SUP: This Period Total Number of Participants (aged 18-24 inclusive) Served who were homeless at time of program entry:","THP-SUP: Previous Total Number of Participants (aged 18-24 inclusive) who exited program into homelessness:","THP-SUP: This Period Total Number of Participants (aged 18-24 inclusive) who exited program into homelessness:","THP-SUP: Previous Total Number of Participants (aged 18-24 inclusive) who exited program into permanent housing:","THP-SUP: This Period Total Number of Participants (aged 18-24 inclusive) who exited program into permanent housing:","THP-SUP: Previous Total Number of Participants (aged 18-24 inclusive) employed:","THP-SUP: This Period Total Number of Participants (aged 18-24 inclusive) employed:","THP-SUP: Previous Total Number of Participants (aged 18-24 inclusive) which identify as LGBTQIA+:","THP-SUP: This Period Total Number of Participants (aged 18-24 inclusive) which identify as LGBTQIA+:","THP-SUP: Previous Total Number of Participants (aged 18-24 inclusive) enrolled in a school/education program:","THP-SUP: This Period Total Number of Participants (aged 18-24 inclusive) enrolled in a school/education program:","THP-SUP: Previous Total Number of Participants (aged 18-24 inclusive) which reported having a disability:","THP-SUP: This Period Total Number of Participants (aged 18-24 inclusive) which reported having a disability:","THP-SUP: Previous Total Number of Participants (aged 18-24 inclusive) who reported being incarcerated prior to program entry:","THP-SUP: This Period Total Number of Participants (aged 18-24 inclusive) who reported being incarcerated prior to program entry:","THP-SUP: Previous Total Number of Participants (aged 18-24 inclusive) who were in the state's probation system:","THP-SUP: This Period Total Number of Participants (aged 18-24 inclusive) who were in the state's probation system:","THP-SUP: Previous Total Number of Participants (aged 18-24 inclusive) who were in the state's foster care system:","THP-SUP: This Period Total Number of Participants (aged 18-24 inclusive) who were in the state's foster care system:","THP-SUP: Previous Total Number of Participants (aged 18-24 inclusive) with minor children in the household:","THP-SUP: This Period Total Number of Participants (aged 18-24 inclusive) with minor children in the household:","THP-SUP: Previous If minor children are in the household, provide the average number of children per household:","THP-SUP: This Period If minor children are in the household, provide the average number of children per household:","THP-SUP: Previous Total Number of Participants (aged 18-24 inclusive) which identify as American Indian or Alaska Native:","THP-SUP: This Period Total Number of Participants (aged 18-24 inclusive) which identify as American Indian or Alaska Native:","THP-SUP: Previous Total Number of Participants (aged 18-24 inclusive) which identify as Asian:","THP-SUP: This Period Total Number of Participants (aged 18-24 inclusive) which identify as Asian:","THP-SUP: Previous Total Number of Participants (aged 18-24 inclusive) which identify as Black or African American:","THP-SUP: This Period Total Number of Participants (aged 18-24 inclusive) which identify as Black or African American:","THP-SUP: Previous Total Number of Participants (aged 18-24 inclusive) which identify as Native Hawaiian or Other Pacific Islander:","THP-SUP: This Period Total Number of Participants (aged 18-24 inclusive) which identify as Native Hawaiian or Other Pacific Islander:","THP-SUP: Previous Total Number of Participants (aged 18-24 inclusive) which identify as White:","THP-SUP: This Period Total Number of Participants (aged 18-24 inclusive) which identify as White:","THP-SUP: Previous Total Number of Participants (aged 18-24 inclusive) which identify as Multiracial:","THP-SUP: This Period Total Number of Participants (aged 18-24 inclusive) which identify as Multiracial:","THP-SUP: Previous Total Number of Participants (aged 18-24 inclusive) which identify as Hispanic, Latino, or Spanish Origin:","THP-SUP: This Period Total Number of Participants (aged 18-24 inclusive) which identify as Hispanic, Latino, or Spanish Origin:","THP-SUP: Previous Total Number of Participants (aged 18-24 inclusive) which identify as Not of Hispanic, Latino, or Spanish Origin :","THP-SUP: This Period Total Number of Participants (aged 18-24 inclusive) which identify as Not of Hispanic, Latino, or Spanish Origin :","HNMP: What were funds used for? ","THP: What were funds used for? ","THP-SUP: What were funds used for? ","HNMP:  Who were the housing navigators and/or subcontractors?","THP:  Who were the housing navigators and/or subcontractors?","THP-SUP:  Who were the housing navigators and/or subcontractors?","HNMP: How were foster care system participants prioritized? ","THP: How were foster care system participants prioritized? ","THP-SUP: How were foster care system participants prioritized? ","HNMP: What were some program successes? ","THP: What were some program successes? ","THP-SUP: What were some program successes? ","HNMP: Did you experience any program barriers? ","THP: Did you experience any program barriers? ","THP-SUP: Did you experience any program barriers? "]
[{"$f":"'TAY Bi-Annual Report'!G7","v":"Select One"},{"$f":"'TAY Bi-Annual Report'!G9","v":"Total Contract Award Amount:"},{"$f":"'TAY Bi-Annual Report'!$I$9","v":0},{"$f":"'TAY Bi-Annual Report'!C12","v":0},{"$f":"'TAY Bi-Annual Report'!C13","v":0},{"$f":"'TAY Bi-Annual Report'!I12","v":0},{"$f":"'TAY Bi-Annual Report'!$I$13","v":0},{"$f":"'TAY Bi-Annual Report'!$C$14","v":0},{"$f":"'TAY Bi-Annual Report'!$I$14","v":0},{"$f":"'TAY Bi-Annual Report'!$C$15","v":0},{"$f":"'TAY Bi-Annual Report'!$I$15","v":0},{"$f":"'TAY Bi-Annual Report'!$C$16","v":0},{"$f":"'TAY Bi-Annual Report'!$I$16","v":0},{"$f":"'TAY Bi-Annual Report'!$C$17","v":0},{"$f":"'TAY Bi-Annual Report'!$I$17","v":0},{"$f":"'TAY Bi-Annual Report'!C19","v":0},{"$f":"'TAY Bi-Annual Report'!C20","v":0},{"$f":"'TAY Bi-Annual Report'!I19","v":0},{"$f":"'TAY Bi-Annual Report'!I20","v":0},{"$f":"'TAY Bi-Annual Report'!$E$25","v":0},{"$f":"'TAY Bi-Annual Report'!$F$25","v":0},{"$f":"'TAY Bi-Annual Report'!$G$25","v":0},{"$f":"'TAY Bi-Annual Report'!H25","v":0},{"$f":"'TAY Bi-Annual Report'!J25","v":0},{"$f":"'TAY Bi-Annual Report'!$E$26","v":0},{"$f":"'TAY Bi-Annual Report'!$F$26","v":0},{"$f":"'TAY Bi-Annual Report'!$G$26","v":0},{"$f":"'TAY Bi-Annual Report'!H26","v":0},{"$f":"'TAY Bi-Annual Report'!J26","v":0},{"$f":"'TAY Bi-Annual Report'!$E$27","v":0},{"$f":"'TAY Bi-Annual Report'!$F$27","v":0},{"$f":"'TAY Bi-Annual Report'!$G$27","v":0},{"$f":"'TAY Bi-Annual Report'!H27","v":0},{"$f":"'TAY Bi-Annual Report'!J27","v":0},{"$f":"'TAY Bi-Annual Report'!E28","v":0},{"$f":"'TAY Bi-Annual Report'!F28","v":0},{"$f":"'TAY Bi-Annual Report'!G28","v":0},{"$f":"'TAY Bi-Annual Report'!H28","v":0},{"$f":"'TAY Bi-Annual Report'!I28","v":{"$error":"#DIV/0!"}},{"$f":"'TAY Bi-Annual Report'!J28","v":0},{"$f":"'TAY Bi-Annual Report'!K28","v":{"$error":"#DIV/0!"}},{"$f":"'TAY Bi-Annual Report'!$J$34","v":0},{"$f":"'TAY Bi-Annual Report'!$K$34","v":0},{"$f":"'TAY Bi-Annual Report'!$J$35","v":0},{"$f":"'TAY Bi-Annual Report'!$K$35","v":0},{"$f":"'TAY Bi-Annual Report'!$J$36","v":0},{"$f":"'TAY Bi-Annual Report'!$K$36","v":0},{"$f":"'TAY Bi-Annual Report'!$J$37","v":0},{"$f":"'TAY Bi-Annual Report'!$K$37","v":0},{"$f":"'TAY Bi-Annual Report'!$J$38","v":0},{"$f":"'TAY Bi-Annual Report'!$K$38","v":0},{"$f":"'TAY Bi-Annual Report'!$J$39","v":0},{"$f":"'TAY Bi-Annual Report'!$K$39","v":0},{"$f":"'TAY Bi-Annual Report'!J40","v":0},{"$f":"'TAY Bi-Annual Report'!K40","v":0},{"$f":"'TAY Bi-Annual Report'!J41","v":0},{"$f":"'TAY Bi-Annual Report'!$A$44","v":0},{"$f":"'TAY Bi-Annual Report'!$J$47","v":0},{"$f":"'TAY Bi-Annual Report'!$K$47","v":0},{"$f":"'TAY Bi-Annual Report'!$J$48","v":0},{"$f":"'TAY Bi-Annual Report'!$K$48","v":0},{"$f":"'TAY Bi-Annual Report'!$J$49","v":0},{"$f":"'TAY Bi-Annual Report'!$K$49","v":0},{"$f":"'TAY Bi-Annual Report'!$J$50","v":0},{"$f":"'TAY Bi-Annual Report'!$K$50","v":0},{"$f":"'TAY Bi-Annual Report'!$J$51","v":0},{"$f":"'TAY Bi-Annual Report'!$K$51","v":0},{"$f":"'TAY Bi-Annual Report'!$J$52","v":0},{"$f":"'TAY Bi-Annual Report'!$K$52","v":0},{"$f":"'TAY Bi-Annual Report'!J53","v":0},{"$f":"'TAY Bi-Annual Report'!K53","v":0},{"$f":"'TAY Bi-Annual Report'!J54","v":0},{"$f":"'TAY Bi-Annual Report'!A57","v":0},{"$f":"'TAY Bi-Annual Report'!$J$60","v":0},{"$f":"'TAY Bi-Annual Report'!$K$60","v":0},{"$f":"'TAY Bi-Annual Report'!$J$61","v":0},{"$f":"'TAY Bi-Annual Report'!$K$61","v":0},{"$f":"'TAY Bi-Annual Report'!$J$62","v":0},{"$f":"'TAY Bi-Annual Report'!$K$62","v":0},{"$f":"'TAY Bi-Annual Report'!$J$63","v":0},{"$f":"'TAY Bi-Annual Report'!$K$63","v":0},{"$f":"'TAY Bi-Annual Report'!$J$64","v":0},{"$f":"'TAY Bi-Annual Report'!$K$64","v":0},{"$f":"'TAY Bi-Annual Report'!$J$65","v":0},{"$f":"'TAY Bi-Annual Report'!$K$65","v":0},{"$f":"'TAY Bi-Annual Report'!J66","v":0},{"$f":"'TAY Bi-Annual Report'!K66","v":0},{"$f":"'TAY Bi-Annual Report'!J67","v":0},{"$f":"'TAY Bi-Annual Report'!A70","v":0},{"$f":"'TAY Bi-Annual Report'!$J$77","v":0},{"$f":"'TAY Bi-Annual Report'!$K$77","v":0},{"$f":"'TAY Bi-Annual Report'!$J$78","v":0},{"$f":"'TAY Bi-Annual Report'!$J$80","v":0},{"$f":"'TAY Bi-Annual Report'!$K$80","v":0},{"$f":"'TAY Bi-Annual Report'!$J$81","v":0},{"$f":"'TAY Bi-Annual Report'!$K$81","v":0},{"$f":"'TAY Bi-Annual Report'!$J$82","v":0},{"$f":"'TAY Bi-Annual Report'!$K$82","v":0},{"$f":"'TAY Bi-Annual Report'!$J$83","v":0},{"$f":"'TAY Bi-Annual Report'!$K$83","v":0},{"$f":"'TAY Bi-Annual Report'!$J$84","v":0},{"$f":"'TAY Bi-Annual Report'!$K$84","v":0},{"$f":"'TAY Bi-Annual Report'!$J$85","v":0},{"$f":"'TAY Bi-Annual Report'!$K$85","v":0},{"$f":"'TAY Bi-Annual Report'!$J$86","v":0},{"$f":"'TAY Bi-Annual Report'!$K$86","v":0},{"$f":"'TAY Bi-Annual Report'!$J$87","v":0},{"$f":"'TAY Bi-Annual Report'!$K$87","v":0},{"$f":"'TAY Bi-Annual Report'!$J$88","v":0},{"$f":"'TAY Bi-Annual Report'!$K$88","v":0},{"$f":"'TAY Bi-Annual Report'!$J$89","v":0},{"$f":"'TAY Bi-Annual Report'!$K$89","v":0},{"$f":"'TAY Bi-Annual Report'!$J$90","v":0},{"$f":"'TAY Bi-Annual Report'!$K$90","v":0},{"$f":"'TAY Bi-Annual Report'!$J$91","v":0},{"$f":"'TAY Bi-Annual Report'!$K$91","v":0},{"$f":"'TAY Bi-Annual Report'!$J$93","v":0},{"$f":"'TAY Bi-Annual Report'!$K$93","v":0},{"$f":"'TAY Bi-Annual Report'!$J$94","v":0},{"$f":"'TAY Bi-Annual Report'!$K$94","v":0},{"$f":"'TAY Bi-Annual Report'!$J$95","v":0},{"$f":"'TAY Bi-Annual Report'!$K$95","v":0},{"$f":"'TAY Bi-Annual Report'!$J$96","v":0},{"$f":"'TAY Bi-Annual Report'!$K$96","v":0},{"$f":"'TAY Bi-Annual Report'!$J$97","v":0},{"$f":"'TAY Bi-Annual Report'!$K$97","v":0},{"$f":"'TAY Bi-Annual Report'!$J$98","v":0},{"$f":"'TAY Bi-Annual Report'!$K$98","v":0},{"$f":"'TAY Bi-Annual Report'!$J$100","v":0},{"$f":"'TAY Bi-Annual Report'!$K$100","v":0},{"$f":"'TAY Bi-Annual Report'!$J$101","v":0},{"$f":"'TAY Bi-Annual Report'!$K$101","v":0},{"$f":"'TAY Bi-Annual Report'!$J$106","v":0},{"$f":"'TAY Bi-Annual Report'!$K$106","v":0},{"$f":"'TAY Bi-Annual Report'!$J$107","v":0},{"$f":"'TAY Bi-Annual Report'!$J$109","v":0},{"$f":"'TAY Bi-Annual Report'!$K$109","v":0},{"$f":"'TAY Bi-Annual Report'!$J$110","v":0},{"$f":"'TAY Bi-Annual Report'!$K$110","v":0},{"$f":"'TAY Bi-Annual Report'!$J$111","v":0},{"$f":"'TAY Bi-Annual Report'!$K$111","v":0},{"$f":"'TAY Bi-Annual Report'!$J$112","v":0},{"$f":"'TAY Bi-Annual Report'!$K$112","v":0},{"$f":"'TAY Bi-Annual Report'!$J$113","v":0},{"$f":"'TAY Bi-Annual Report'!$K$113","v":0},{"$f":"'TAY Bi-Annual Report'!$J$114","v":0},{"$f":"'TAY Bi-Annual Report'!$K$114","v":0},{"$f":"'TAY Bi-Annual Report'!$J$115","v":0},{"$f":"'TAY Bi-Annual Report'!$K$115","v":0},{"$f":"'TAY Bi-Annual Report'!$J$116","v":0},{"$f":"'TAY Bi-Annual Report'!$K$116","v":0},{"$f":"'TAY Bi-Annual Report'!$J$117","v":0},{"$f":"'TAY Bi-Annual Report'!$K$117","v":0},{"$f":"'TAY Bi-Annual Report'!$J$118","v":0},{"$f":"'TAY Bi-Annual Report'!$K$118","v":0},{"$f":"'TAY Bi-Annual Report'!$J$119","v":0},{"$f":"'TAY Bi-Annual Report'!$K$119","v":0},{"$f":"'TAY Bi-Annual Report'!$J$120","v":0},{"$f":"'TAY Bi-Annual Report'!$K$120","v":0},{"$f":"'TAY Bi-Annual Report'!$J$122","v":0},{"$f":"'TAY Bi-Annual Report'!$K$122","v":0},{"$f":"'TAY Bi-Annual Report'!$J$123","v":0},{"$f":"'TAY Bi-Annual Report'!$K$123","v":0},{"$f":"'TAY Bi-Annual Report'!$J$124","v":0},{"$f":"'TAY Bi-Annual Report'!$K$124","v":0},{"$f":"'TAY Bi-Annual Report'!$J$125","v":0},{"$f":"'TAY Bi-Annual Report'!$K$125","v":0},{"$f":"'TAY Bi-Annual Report'!$J$126","v":0},{"$f":"'TAY Bi-Annual Report'!$K$126","v":0},{"$f":"'TAY Bi-Annual Report'!$J$127","v":0},{"$f":"'TAY Bi-Annual Report'!$K$127","v":0},{"$f":"'TAY Bi-Annual Report'!$J$129","v":0},{"$f":"'TAY Bi-Annual Report'!$K$129","v":0},{"$f":"'TAY Bi-Annual Report'!$J$130","v":0},{"$f":"'TAY Bi-Annual Report'!$K$130","v":0},{"$f":"'TAY Bi-Annual Report'!J135","v":0},{"$f":"'TAY Bi-Annual Report'!K135","v":0},{"$f":"'TAY Bi-Annual Report'!J136","v":0},{"$f":"'TAY Bi-Annual Report'!J139","v":0},{"$f":"'TAY Bi-Annual Report'!K139","v":0},{"$f":"'TAY Bi-Annual Report'!J140","v":0},{"$f":"'TAY Bi-Annual Report'!K140","v":0},{"$f":"'TAY Bi-Annual Report'!J141","v":0},{"$f":"'TAY Bi-Annual Report'!K141","v":0},{"$f":"'TAY Bi-Annual Report'!J142","v":0},{"$f":"'TAY Bi-Annual Report'!K142","v":0},{"$f":"'TAY Bi-Annual Report'!J143","v":0},{"$f":"'TAY Bi-Annual Report'!K143","v":0},{"$f":"'TAY Bi-Annual Report'!J144","v":0},{"$f":"'TAY Bi-Annual Report'!K144","v":0},{"$f":"'TAY Bi-Annual Report'!J145","v":0},{"$f":"'TAY Bi-Annual Report'!K145","v":0},{"$f":"'TAY Bi-Annual Report'!J146","v":0},{"$f":"'TAY Bi-Annual Report'!K146","v":0},{"$f":"'TAY Bi-Annual Report'!J147","v":0},{"$f":"'TAY Bi-Annual Report'!K147","v":0},{"$f":"'TAY Bi-Annual Report'!J148","v":0},{"$f":"'TAY Bi-Annual Report'!K148","v":0},{"$f":"'TAY Bi-Annual Report'!J149","v":0},{"$f":"'TAY Bi-Annual Report'!K149","v":0},{"$f":"'TAY Bi-Annual Report'!J150","v":0},{"$f":"'TAY Bi-Annual Report'!K150","v":0},{"$f":"'TAY Bi-Annual Report'!J152","v":0},{"$f":"'TAY Bi-Annual Report'!K152","v":0},{"$f":"'TAY Bi-Annual Report'!J153","v":0},{"$f":"'TAY Bi-Annual Report'!K153","v":0},{"$f":"'TAY Bi-Annual Report'!J154","v":0},{"$f":"'TAY Bi-Annual Report'!K154","v":0},{"$f":"'TAY Bi-Annual Report'!J155","v":0},{"$f":"'TAY Bi-Annual Report'!K155","v":0},{"$f":"'TAY Bi-Annual Report'!J156","v":0},{"$f":"'TAY Bi-Annual Report'!K156","v":0},{"$f":"'TAY Bi-Annual Report'!J157","v":0},{"$f":"'TAY Bi-Annual Report'!K157","v":0},{"$f":"'TAY Bi-Annual Report'!J159","v":0},{"$f":"'TAY Bi-Annual Report'!K159","v":0},{"$f":"'TAY Bi-Annual Report'!J160","v":0},{"$f":"'TAY Bi-Annual Report'!K160","v":0},{"$f":"'TAY Bi-Annual Report'!A166","v":0},{"$f":"'TAY Bi-Annual Report'!A168","v":0},{"$f":"'TAY Bi-Annual Report'!A170","v":0},{"$f":"'TAY Bi-Annual Report'!A173","v":0},{"$f":"'TAY Bi-Annual Report'!A175","v":0},{"$f":"'TAY Bi-Annual Report'!A177","v":0},{"$f":"'TAY Bi-Annual Report'!A180","v":0},{"$f":"'TAY Bi-Annual Report'!A182","v":0},{"$f":"'TAY Bi-Annual Report'!A184","v":0},{"$f":"'TAY Bi-Annual Report'!A187","v":0},{"$f":"'TAY Bi-Annual Report'!A189","v":0},{"$f":"'TAY Bi-Annual Report'!A191","v":0},{"$f":"'TAY Bi-Annual Report'!A194","v":0},{"$f":"'TAY Bi-Annual Report'!A196","v":0},{"$f":"'TAY Bi-Annual Report'!A198","v":0}]

{"sheet":"Drop Downs","index":3,"n_rows":14,"n_cols":1,"rows_kept":14,"cut":false,"hidden":true,"merged":[]}
[]
["Bi-Annual"]
["Select One"]
["January 1, 2023- June 30, 2023,  Due July 31, 2023"]
["July 1, 2023- December 31, 2023, Due January 31, 2024"]
["January 1, 2024- June 30, 2024,  Due July 31, 2024"]
["July 1, 2024- December 31, 2024, Due January 31, 2025"]
["January 1, 2025- June 30, 2025,  Due July 31, 2025"]
["July 1, 2025- December 31, 2025, Due January 31, 2026"]
["January 1, 2026- June 30, 2026,  Due July 31, 2026"]
["July 1, 2026- December 31, 2026, Due January 31, 2027"]
["January 1, 2027- June 30, 2027,  Due July 31, 2027"]
["July 1, 2027- December 31, 2027, Due January 31, 2028"]
["January 1, 2028- June 30, 2028,  Due July 31, 2028"]